bitfinex/quotes_SOLUSD_20251019
["timestamp","ask_amount","ask_price","bid_price","bid_amount"]
[1760860900465,0.1,186.55,186.47,18.75049734]
[1760860901192,0.1,186.55,186.53,3.32887142]
[1760860901379,0.1,186.55,186.54,3.32887142]
[1760860901564,0.1,186.55,186.53,35.78983923]
[1760860901963,0.1,186.55,186.53,37.00594602]
[1760860902181,0.1,186.55,186.53,9.90594602]
[1760860902364,0.1,186.55,186.54,3.32887142]
[1760860902565,0.1,186.55,186.54,4.00887142]
[1760860903491,0.1,186.55,186.54,8.68965194]
[1760860903783,0.1,186.55,186.54,9.36965194]
[1760860904154,0.1,186.55,186.54,20.24612715]
[1760860905502,0.1,186.55,186.54,47.34612715]
[1760860909807,0.1,186.55,186.54,16.91725573]
[1760860910088,0.1,186.55,186.54,47.34612715]
[1760860910380,0.1,186.62,186.54,50.67499857]
[1760860910605,0.1,186.62,186.61,3.32887142]
[1760860910901,0.55,186.62,186.61,27.1]
[1760860911097,0.1,186.62,186.58,8.68823846]
[1760860911311,0.1,186.62,186.59,27.1]
[1760860911312,0.55,186.62,186.59,27.1]
[1760860911801,0.55,186.62,186.6,27.1]
[1760860912109,0.45,186.61,186.6,27.12]
[1760860912274,0.1,186.62,186.6,27.12]
[1760860912609,0.1,186.62,186.6,30.44887142]
[1760860912800,0.1,186.62,186.6,3.32887142]
[1760860912994,0.1,186.62,186.6,30.42887142]
[1760860913306,0.1,186.62,186.6,27.1]
[1760860913510,0.1,186.62,186.6,3.32887142]
[1760860913708,0.1,186.62,186.61,3.32887142]
[1760860914008,0.1,186.62,186.61,30.42887142]
[1760860914708,0.1,186.62,186.61,27.1]
[1760860914885,0.1,186.62,186.6,3.32887142]
[1760860915079,0.1,186.62,186.61,27.1]
[1760860915387,0.1,186.62,186.6,3.32887142]
[1760860915589,0.1,186.62,186.61,27.1]
[1760860917279,0.1,186.62,186.6,9.40788075]
[1760860917496,0.1,186.62,186.61,27.1]
[1760860917801,0.55,186.62,186.59,27.1]
[1760860918489,0.55,186.62,186.6,27.1]
[1760860919202,0.1,186.62,186.6,27.1]
[1760860920183,0.1,186.62,186.59,8.68812137]
[1760860920385,0.1,186.62,186.59,35.78812137]
[1760860920785,0.1,186.62,186.59,36.50812137]
[1760860920994,0.1,186.62,186.61,3.32887142]
[1760860921386,0.1,186.62,186.61,31.14887142]
[1760860921789,0.1,186.62,186.61,4.04887142]
[1760860922098,0.1,186.62,186.61,31.14887142]
[1760860922898,0.1,186.62,186.61,36.50764104]
[1760860923888,0.1,186.62,186.61,9.40764104]
[1760860924407,0.1,186.62,186.61,36.48764104]
[1760860924984,0.1,186.62,186.61,33.15876962]
[1760860925405,0.1,186.62,186.61,27.08]
[1760860925601,0.1,186.62,186.61,30.40887142]
[1760860925990,0.1,186.62,186.61,27.08]
[1760860926399,0.1,186.62,186.61,3.32887142]
[1760860926703,0.1,186.62,186.61,30.40887142]
[1760860926910,0.1,186.62,186.61,3.32887142]
[1760860927090,0.1,186.62,186.61,30.40887142]
[1760860927293,0.1,186.62,186.61,3.32887142]
[1760860927492,0.1,186.62,186.61,8.68764104]
[1760860927693,0.1,186.62,186.61,32.43876962]
[1760860928010,0.1,186.62,186.61,35.76764104]
[1760860929107,0.55,186.62,186.58,3.32887142]
[1760860929309,0.45,186.61,186.57,0.53599185]
[1760860929514,0.45,186.61,186.57,27.08]
[1760860929827,0.1,186.62,186.6,3.32887142]
[1760860929989,0.1,186.62,186.61,4.03887142]
[1760860930919,0.1,186.62,186.61,3.32887142]
[1760860931111,0.1,186.62,186.6,30.42887142]
[1760860931325,0.1,186.62,186.6,27.1]
[1760860931825,0.45,186.61,186.58,5.3594246]
[1760860932027,3.42887142,186.62,186.56,9.39888466]
[1760860932341,0.45,186.6,186.56,35.78888466]
[1760860932518,0.45,186.6,186.56,36.49888466]
[1760860933012,3.32887142,186.61,186.55,8.68934398]
[1760860933206,0.45,186.59,186.55,35.78934398]
[1760860933405,0.45,186.59,186.55,31.13887142]
[1760860933591,0.45,186.59,186.54,8.68961776]
[1760860933799,0.45,186.59,186.54,9.36961776]
[1760860934008,0.45,186.59,186.54,36.46961776]
[1760860934202,0.45,186.58,186.53,0.53610679]
[1760860934415,3.32887142,186.57,186.51,3.32887142]
[1760860934613,3.77887142,186.57,186.51,3.32887142]
[1760860934828,3.32887142,186.58,186.52,4.00887142]
[1760860935202,3.32887142,186.58,186.53,0.68]
[1760860935619,3.77887142,186.58,186.53,0.68]
[1760860936211,3.77887142,186.57,186.47,0.53627929]
[1760860936408,3.32887142,186.5,186.46,0.68]
[1760860936631,3.77887142,186.57,186.44,3.32887142]
[1760860936632,3.32887142,186.51,186.47,0.68]
[1760860936921,0.45,186.53,186.48,0.68]
[1760860936922,3.77887142,186.53,186.48,0.68]
[1760860937101,3.32887142,186.54,186.48,3.32887142]
[1760860937307,3.32887142,186.54,186.49,0.68]
[1760860937513,3.77887142,186.53,186.47,3.32887142]
[1760860937694,3.77887142,186.53,186.48,0.68]
[1760860938615,3.32887142,186.53,186.49,0.68]
[1760860939009,0.45,186.55,186.5,0.68]
[1760860939315,26.20887142,186.56,186.51,0.68]
[1760860939522,26.65887142,186.56,186.51,0.68]
[1760860939714,0.45,186.55,186.51,0.68]
[1760860940112,3.77887142,186.57,186.52,0.68]
[1760860940906,3.77887142,186.56,186.5,4.00887142]
[1760860941218,3.77887142,186.56,186.5,6.04179637]
[1760860941403,3.77887142,186.56,186.5,9.37066779]
[1760860941805,3.77887142,186.56,186.51,4.00887142]
[1760860942209,0.45,186.56,186.51,8.69045045]
[1760860942525,3.32887142,186.57,186.52,0.68]
[1760860942724,3.77887142,186.57,186.52,0.68]
[1760860943100,0.45,186.56,186.51,8.69045045]
[1760860943298,0.45,186.56,186.51,9.37045045]
[1760860943520,0.45,186.56,186.52,0.68]
[1760860943720,3.32887142,186.56,186.52,0.68]
[1760860944622,3.32887142,186.53,186.44,4.00887142]
[1760860944816,3.32887142,186.47,186.41,0.5364519]
[1760860945013,3.32887142,186.46,186.41,0.68]
[1760860945319,3.32887142,186.47,186.42,0.68]
[1760860946022,3.77887142,186.48,186.42,4.00887142]
[1760860946325,3.32887142,186.47,186.42,0.68]
[1760860946718,3.77887142,186.47,186.41,3.32887142]
[1760860946920,3.77887142,186.46,186.4,3.32887142]
[1760860947107,3.77887142,186.46,186.4,8.69358239]
[1760860947513,3.77887142,186.46,186.4,9.37358239]
[1760860948424,3.77887142,186.45,186.39,5.36509469]
[1760860948627,0.45,186.49,186.4,0.68]
[1760860948926,23.33,186.5,186.45,3.32887142]
[1760860949129,23.33,186.5,186.45,0.68]
[1760860949329,26.65887142,186.5,186.45,0.68]
[1760860950923,22.88,186.5,186.46,0.68]
[1760860951125,3.77887142,186.52,186.47,0.68]
[1760860951634,26.65887142,186.52,186.47,0.68]
[1760860951937,0.45,186.51,186.45,4.00887142]
[1760860952232,3.77887142,186.5,186.44,8.69247973]
[1760860953508,3.32887142,186.49,186.44,5.36360831]
[1760860953808,3.32887142,186.49,186.45,0.68]
[1760860954026,3.77887142,186.49,186.44,5.36360831]
[1760860954329,3.32887142,186.49,186.45,0.68]
[1760860954710,3.32887142,186.5,186.45,6.04332927]
[1760860954917,3.77887142,186.5,186.45,6.04332927]
[1760860955111,3.6803147,186.5,186.45,6.04332927]
[1760860955817,3.2303147,186.5,186.45,5.36332927]
[1760860956018,3.2303147,186.5,186.46,0.68]
[1760860956733,22.88,186.51,186.47,0.68]
[1760860957311,26.20887142,186.51,186.47,0.68]
[1760860957813,22.88,186.51,186.47,0.68]
[1760860959335,26.20887142,186.51,186.47,0.68]
[1760860961921,22.88,186.51,186.48,0.68]
[1760860963232,22.88,186.51,186.48,3.32887142]
[1760860963447,105.42887142,186.54,186.49,0.68]
[1760860963631,124.98,186.54,186.5,0.69]
[1760860963820,102.1,186.54,186.5,4.01887142]
[1760860964022,102.1,186.54,186.51,0.69]
[1760860966138,102.1,186.54,186.5,6.05191805]
[1760860966720,102.1,186.54,186.5,9.38078947]
[1760860967033,102.1,186.54,186.5,6.05191805]
[1760860967238,3.77887142,186.56,186.51,4.01887142]
[1760860967617,26.65887142,186.56,186.51,4.01887142]
[1760860967830,26.65887142,186.56,186.51,0.69]
[1760860968024,3.32887142,186.54,186.5,5.36191805]
[1760860968222,3.77887142,186.54,186.5,5.36191805]
[1760860968428,3.77887142,186.54,186.5,6.05191805]
[1760860969639,0.45,186.54,186.5,6.05191805]
[1760860969861,3.32887142,186.55,186.5,6.05191805]
[1760860970027,3.77887142,186.55,186.5,6.05191805]
[1760860971128,0.45,186.55,186.49,8.69108923]
[1760860971330,26.20887142,186.56,186.51,0.69]
[1760860971647,22.88,186.54,186.51,0.69]
[1760860972539,3.77887142,186.56,186.51,0.69]
[1760860972735,3.77887142,186.56,186.5,3.32887142]
[1760860972941,3.32887142,186.57,186.51,0.69]
[1760860973254,3.32887142,186.56,186.51,0.69]
[1760860973635,3.32887142,186.56,186.52,0.69]
[1760860973845,3.77887142,186.57,186.52,0.69]
[1760860975257,3.77887142,186.57,186.52,6.05134641]
[1760860975458,3.32887142,186.58,186.53,0.69]
[1760860975653,3.77887142,186.58,186.53,0.69]
[1760860976151,3.32887142,186.58,186.53,0.69]
[1760860976349,0.45,186.57,186.52,5.36134641]
[1760860976560,0.45,186.57,186.52,6.05134641]
[1760860977361,0.45,186.56,186.5,0.69]
[1760860977572,0.45,186.56,186.5,4.01887142]
[1760860977742,22.88,186.56,186.51,0.69]
[1760860977938,22.88,186.56,186.52,0.69]
[1760860978960,23.33,186.56,186.52,0.69]
[1760860979161,23.33,186.56,186.49,6.05221781]
[1760860979162,3.77887142,186.55,186.49,6.05221781]
[1760860979364,3.32887142,186.52,186.47,0.69]
[1760860979570,0.45,186.51,186.47,0.69]
[1760860979764,3.32887142,186.52,186.46,3.32887142]
[1760860980068,3.32887142,186.52,186.48,0.69]
[1760860980566,22.88,186.54,186.49,0.69]
[1760860980755,22.88,186.54,186.5,0.69]
[1760860981668,22.88,186.54,186.51,0.69]
[1760860981854,105.87887142,186.58,186.52,3.32887142]
[1760860982046,124.98,186.57,186.52,0.69]
[1760860982243,124.98,186.57,186.47,0.53627929]
[1760860982244,22.88,186.49,186.35,0.2]
[1760860982549,16.11,186.5,186.36,0.69]
[1760860982550,22.88,186.43,186.36,0.69]
[1760860982751,26.20887142,186.43,186.36,4.55546725]
[1760860982951,26.20887142,186.43,186.35,5.56620396]
[1760860982952,3.86515071,186.42,186.37,0.69]
[1760860983151,3.61177917,186.41,186.37,0.69]
[1760860983348,22.88,186.43,186.38,3.32887142]
[1760860983653,22.88,186.43,186.39,0.69]
[1760860983965,3.86515071,186.44,186.37,9.23089081]
[1760860984162,3.32887142,186.43,186.4,0.69]
[1760860984372,3.32887142,186.43,186.38,0.69]
[1760860984671,3.32887142,186.41,186.39,0.69]
[1760860985057,3.32887142,186.41,186.37,0.69]
[1760860985248,3.32887142,186.41,186.38,0.69]
[1760860985449,7.47109951,186.42,186.38,0.69]
[1760860985772,3.86515071,186.42,186.38,0.69]
[1760860986342,3.32887142,186.41,186.38,0.69]
[1760860987857,0.53627929,186.44,186.36,5.36593557]
[1760860988154,3.32887142,186.41,186.38,0.69]
[1760860988560,3.32887142,186.41,186.36,5.36593557]
[1760860988856,3.32887142,186.41,186.38,0.69]
[1760860989054,3.32887142,186.41,186.39,0.69]
[1760860992349,3.32887142,186.4,186.37,0.68]
[1760860992552,3.32887142,186.4,186.38,0.68]
[1760860993664,3.32887142,186.39,186.35,0.85]
[1760860993862,3.32887142,186.38,186.36,0.65]
[1760860994559,3.32887142,186.38,186.35,0.2]
[1760860994759,3.32887142,186.38,186.35,0.85]
[1760860995161,3.32887142,186.37,186.35,0.85]
[1760860995551,3.32887142,186.36,186.35,0.2]
[1760860995751,23.41627929,186.38,186.35,0.2]
[1760860996059,3.32887142,186.36,186.35,0.2]
[1760860996778,3.86515071,186.36,186.35,0.2]
[1760860999060,0.53627929,186.36,186.35,0.2]
[1760860999254,3.86515071,186.36,186.35,0.2]
[1760861003272,14.74162592,186.36,186.35,0.2]
[1760861005975,0.53627929,186.36,186.35,0.2]
[1760861006294,3.32887142,186.36,186.35,0.2]
[1760861006872,3.32887142,186.36,186.35,0.85]
[1760861009403,3.86515071,186.37,186.35,0.85]
[1760861009700,3.86515071,186.37,186.36,0.65]
[1760861010673,3.32887142,186.37,186.36,0.65]
[1760861013784,3.86515071,186.37,186.36,0.65]
[1760861013983,3.32887142,186.37,186.36,0.65]
[1760861014380,3.86515071,186.37,186.36,0.65]
[1760861015104,3.32887142,186.37,186.36,0.65]
[1760861015679,0.53627929,186.4,186.36,0.65]
[1760861015886,3.32887142,186.39,186.36,0.65]
[1760861016193,22.88,186.38,186.36,0.65]
[1760861016402,3.86515071,186.4,186.36,0.65]
[1760861017981,0.53627929,186.4,186.36,0.65]
[1760861018181,128.30887142,186.41,186.36,0.65]
[1760861019098,128.30887142,186.41,186.36,6.01584466]
[1760861019405,22.88,186.41,186.37,0.65]
[1760861021884,22.88,186.41,186.37,6.01565093]
[1760861022084,22.88,186.41,186.38,0.65]
[1760861022279,3.59436045,186.4,186.38,0.65]
[1760861022507,22.88,186.41,186.38,0.65]
[1760861023400,3.59721339,186.4,186.38,0.65]
[1760861023591,22.88,186.41,186.38,0.65]
[1760861023921,3.59721379,186.4,186.38,0.65]
[1760861024218,22.88,186.41,186.38,0.65]
[1760861024395,3.60037114,186.4,186.38,0.65]
[1760861024590,22.88,186.41,186.38,0.65]
[1760861024793,3.60035155,186.4,186.38,0.65]
[1760861024990,3.60037163,186.39,186.38,0.65]
[1760861025189,3.32887142,186.42,186.38,0.65]
[1760861025408,3.60059335,186.41,186.38,0.65]
[1760861025608,3.60047348,186.4,186.38,0.65]
[1760861025789,3.32887142,186.42,186.38,0.65]
[1760861025998,3.60047218,186.41,186.38,0.65]
[1760861026194,3.6037712,186.4,186.38,0.65]
[1760861026399,3.32887142,186.42,186.38,0.65]
[1760861026596,3.60377091,186.41,186.38,0.65]
[1760861026791,3.60377091,186.4,186.38,0.65]
[1760861026991,3.32887142,186.42,186.38,0.65]
[1760861027193,3.60828776,186.41,186.38,0.65]
[1760861027493,3.60828776,186.4,186.38,0.65]
[1760861027694,3.32887142,186.42,186.38,0.65]
[1760861027911,3.60825461,186.41,186.38,0.65]
[1760861028088,3.60825461,186.4,186.38,0.65]
[1760861028290,3.32887142,186.42,186.38,0.65]
[1760861028595,3.60816048,186.41,186.38,0.65]
[1760861028800,3.60816048,186.4,186.38,0.65]
[1760861028994,3.32887142,186.42,186.38,0.65]
[1760861029194,3.60851508,186.41,186.38,0.65]
[1760861029416,3.32887142,186.42,186.38,0.65]
[1760861029711,3.6085141,186.41,186.38,6.01535099]
[1760861030011,3.32887142,186.42,186.39,0.65]
[1760861030219,3.60860013,186.41,186.4,0.65]
[1760861032691,3.60860013,186.42,186.4,0.65]
[1760861032909,3.32887142,186.43,186.41,0.65]
[1760861033109,3.60872585,186.42,186.41,0.65]
[1760861034221,3.60872585,186.42,186.4,0.65]
[1760861034518,3.6087034,186.42,186.4,0.65]
[1760861035115,3.32887142,186.43,186.4,0.65]
[1760861035327,3.32887142,186.43,186.41,0.65]
[1760861037898,6.93741727,186.43,186.41,0.65]
[1760861038098,3.32887142,186.43,186.41,0.65]
[1760861038298,6.93741727,186.43,186.41,0.65]
[1760861038622,3.32887142,186.43,186.41,0.65]
[1760861038921,6.93741727,186.43,186.41,0.65]
[1760861039123,3.32887142,186.43,186.41,0.65]
[1760861039323,6.93741727,186.43,186.41,0.65]
[1760861039523,3.32887142,186.43,186.41,0.65]
[1760861039700,6.93741727,186.43,186.41,0.65]
[1760861040019,3.60854585,186.44,186.38,8.69425397]
[1760861040219,6.93741727,186.45,186.42,0.65]
[1760861041017,6.93741727,186.45,186.39,3.32887142]
[1760861041220,6.93741727,186.45,186.43,0.65]
[1760861041432,6.93741727,186.45,186.42,0.65]
[1760861042315,102.1,186.46,186.43,0.65]
[1760861042714,3.32887142,186.49,186.43,3.97887142]
[1760861042917,102.1,186.52,186.44,3.97887142]
[1760861042918,3.32887142,186.5,186.44,3.97887142]
[1760861043132,6.9350359,186.5,186.45,0.65]
[1760861043427,3.32887142,186.5,186.45,0.65]
[1760861043814,7.47131519,186.51,186.45,3.97887142]
[1760861044127,7.47131519,186.51,186.46,6.01304903]
[1760861044420,7.47131519,186.51,186.47,0.65]
[1760861044815,3.86515071,186.51,186.47,0.65]
[1760861045009,3.32887142,186.5,186.47,0.65]
[1760861045206,3.32887142,186.48,186.43,0.53639435]
[1760861045421,3.32887142,186.44,186.38,0.65]
[1760861045619,3.32887142,186.42,186.38,0.65]
[1760861045822,3.32887142,186.42,186.39,0.65]
[1760861046203,3.32887142,186.42,186.39,6.01506415]
[1760861047434,3.32887142,186.42,186.4,0.65]
[1760861047821,3.32887142,186.42,186.38,0.65]
[1760861048127,3.32887142,186.42,186.39,0.65]
[1760861048344,3.32887142,186.4,186.35,0.2]
[1760861048511,3.32887142,186.39,186.35,0.85]
[1760861048715,3.32887142,186.39,186.35,6.21599976]
[1760861050021,3.32887142,186.39,186.36,0.65]
[1760861051429,3.32887142,186.4,186.37,0.66]
[1760861051632,3.32887142,186.41,186.37,0.66]
[1760861052116,3.32887142,186.41,186.38,0.66]
[1760861053518,3.32887142,186.42,186.39,0.66]
[1760861053718,3.32887142,186.43,186.39,0.66]
[1760861055018,3.32887142,186.43,186.39,6.02503888]
[1760861055218,3.32887142,186.43,186.4,0.67]
[1760861055419,3.32887142,186.43,186.41,0.67]
[1760861057316,26.20887142,186.45,186.42,0.67]
[1760861057524,22.88,186.47,186.43,0.67]
[1760861057827,3.32887142,186.46,186.43,0.67]
[1760861058131,3.32887142,186.45,186.42,0.67]
[1760861058724,3.32887142,186.44,186.39,5.90156251]
[1760861058914,3.32887142,186.42,186.39,0.67]
[1760861059123,3.32887142,186.4,186.37,5.36567044]
[1760861059324,3.32887142,186.4,186.37,6.03567044]
[1760861059720,3.32887142,186.39,186.35,6.23599684]
[1760861059929,3.32887142,186.39,186.36,0.67]
[1760861060129,3.32887142,186.39,186.37,0.67]
[1760861060532,4.14992023,186.42,186.37,0.67]
[1760861060533,3.32887142,186.4,186.37,0.67]
[1760861062333,23.41627929,186.42,186.36,5.36578281]
[1760861062334,3.32887142,186.41,186.36,5.36578281]
[1760861062538,26.20887142,186.42,186.37,0.67]
[1760861063224,22.88,186.42,186.37,3.99887142]
[1760861063538,105.42887142,186.45,186.39,3.32887142]
[1760861063736,3.61471221,186.44,186.4,0.67]
[1760861063937,105.42887142,186.45,186.4,0.67]
[1760861064137,6.94358293,186.44,186.4,0.67]
[1760861064329,3.86515071,186.44,186.4,0.67]
[1760861064542,3.32887142,186.44,186.4,0.67]
[1760861065235,3.32887142,186.44,186.39,5.36496679]
[1760861065449,3.32887142,186.44,186.41,0.67]
[1760861066544,3.32887142,186.44,186.4,5.36471048]
[1760861066849,26.20887142,186.46,186.42,0.67]
[1760861067043,6.9439893,186.45,186.42,0.67]
[1760861067245,3.32887142,186.45,186.42,0.67]
[1760861067754,3.32887142,186.45,186.43,0.67]
[1760861068244,3.32887142,186.45,186.41,6.03446207]
[1760861068443,3.32887142,186.45,186.42,0.67]
[1760861068950,3.32887142,186.45,186.41,5.36446207]
[1760861069158,26.20887142,186.46,186.43,0.67]
[1760861069335,26.20887142,186.46,186.44,0.67]
[1760861069535,22.88,186.46,186.44,0.67]
[1760861072060,22.88,186.46,186.45,0.67]
[1760861072254,3.32887142,186.47,186.45,0.67]
[1760861073156,3.32887142,186.47,186.43,5.3638428]
[1760861073352,3.86515071,186.48,186.44,0.67]
[1760861073655,3.32887142,186.47,186.44,0.67]
[1760861073957,3.86515071,186.48,186.45,0.67]
[1760861074155,7.47832257,186.48,186.45,0.67]
[1760861074740,3.86515071,186.48,186.45,0.67]
[1760861075841,3.32887142,186.47,186.45,0.67]
[1760861078159,102.1,186.49,186.46,0.67]
[1760861078464,105.42887142,186.49,186.46,0.67]
[1760861079845,3.32887142,186.47,186.45,0.67]
[1760861080452,102.63627929,186.49,186.45,0.67]
[1760861080639,3.32887142,186.48,186.45,0.67]
[1760861081668,3.32887142,186.48,186.43,5.36394357]
[1760861081957,3.32887142,186.48,186.45,0.67]
[1760861084855,3.32887142,186.48,186.45,0.66]
[1760861085366,3.32887142,186.48,186.43,5.36394357]
[1760861085665,3.32887142,186.48,186.46,0.66]
[1760861085861,3.32887142,186.48,186.43,5.36394357]
[1760861086070,3.32887142,186.48,186.44,0.66]
[1760861086268,3.32887142,186.48,186.43,5.36394357]
[1760861086445,3.32887142,186.48,186.45,0.66]
[1760861088252,3.32887142,186.48,186.43,6.02394357]
[1760861088452,3.32887142,186.46,186.41,6.02451907]
[1760861088774,3.32887142,186.47,186.42,0.66]
[1760861088958,3.86515071,186.48,186.42,3.98887142]
[1760861089157,3.86515071,186.48,186.43,0.66]
[1760861089360,3.86515071,186.48,186.44,0.66]
[1760861091149,0.53627929,186.48,186.43,5.3639001]
[1760861091350,0.53627929,186.48,186.44,0.66]
[1760861091351,3.86515071,186.48,186.44,0.66]
[1760861093474,3.86515071,186.48,186.43,5.3639001]
[1760861093652,3.86515071,186.48,186.45,0.66]
[1760861093854,3.86515071,186.48,186.46,0.66]
[1760861094072,0.53627929,186.48,186.46,0.66]
[1760861094552,0.53627929,186.48,186.44,5.36356066]
[1760861094759,0.53627929,186.48,186.45,0.66]
[1760861094960,0.53627929,186.48,186.46,0.66]
[1760861097156,102.1,186.49,186.47,0.66]
[1760861097478,102.1,186.49,186.48,0.66]
[1760861100153,3.32887142,186.52,186.48,6.02249255]
[1760861100376,22.88,186.51,186.49,0.66]
[1760861100752,22.88,186.51,186.5,0.66]
[1760861100955,3.32887142,186.53,186.5,0.66]
[1760861100956,22.88,186.52,186.5,0.66]
[1760861102167,3.32887142,186.53,186.5,0.66]
[1760861102488,3.61071305,186.54,186.51,0.66]
[1760861102658,105.42887142,186.55,186.51,0.66]
[1760861103386,102.1,186.55,186.51,0.66]
[1760861103564,102.1,186.55,186.51,3.98887142]
[1760861103763,3.86515071,186.57,186.52,5.36135535]
[1760861103971,3.60909071,186.56,186.53,0.66]
[1760861104378,3.60909071,186.56,186.54,0.66]
[1760861104867,7.47424142,186.57,186.54,0.66]
[1760861105062,3.32887142,186.57,186.54,0.66]
[1760861105273,3.32887142,186.57,186.55,0.66]
[1760861105479,3.32887142,186.57,186.52,5.36135535]
[1760861105662,3.60672889,186.58,186.55,0.66]
[1760861106281,3.60672889,186.58,186.53,8.68972155]
[1760861106282,3.60672889,186.58,186.56,0.66]
[1760861106693,3.60672889,186.58,186.57,0.66]
[1760861107188,26.20887142,186.59,186.57,0.66]
[1760861107690,22.88,186.59,186.58,0.66]
[1760861107863,0.53627929,186.61,186.58,0.66]
[1760861108065,7.47066236,186.61,186.58,0.66]
[1760861108259,4.14050608,186.61,186.58,0.66]
[1760861108578,7.4693775,186.61,186.58,0.66]
[1760861108981,3.60422679,186.61,186.57,5.35985847]
[1760861109169,3.32887142,186.61,186.58,0.66]
[1760861110564,4.23886845,186.62,186.58,0.66]
[1760861110764,3.32887142,186.61,186.58,0.66]
[1760861111181,3.32887142,186.6,186.53,13.9387766]
[1760861111361,3.32887142,186.56,186.52,0.72]
[1760861111689,0.53627929,186.6,186.5,0.72]
[1760861111690,3.32887142,186.53,186.5,0.72]
[1760861111876,3.32887142,186.52,186.5,0.72]
[1760861112682,3.32887142,186.53,186.51,0.72]
[1760861113768,3.32887142,186.52,186.48,0.67]
[1760861114080,3.32887142,186.5,186.46,6.03306549]
[1760861114283,3.32887142,186.5,186.47,0.67]
[1760861114786,3.32887142,186.5,186.48,0.67]
[1760861114998,3.32887142,186.52,186.48,0.67]
[1760861115365,3.32887142,186.53,186.48,6.03244767]
[1760861115683,3.32887142,186.53,186.49,0.67]
[1760861116677,3.32887142,186.52,186.5,0.67]
[1760861116873,3.32887142,186.52,186.48,5.36244767]
[1760861117080,3.32887142,186.52,186.49,0.67]
[1760861117983,3.32887142,186.51,186.47,0.67]
[1760861118186,3.32887142,186.5,186.47,0.67]
[1760861118373,0.53627929,186.52,186.48,0.67]
[1760861118578,3.32887142,186.53,186.48,0.67]
[1760861118975,26.74515071,186.55,186.49,3.32887142]
[1760861119298,26.20887142,186.55,186.5,0.67]
[1760861119473,22.88,186.55,186.5,3.99887142]
[1760861119800,105.42887142,186.56,186.51,0.67]
[1760861119969,3.32887142,186.57,186.51,9.36023946]
[1760861120170,3.32887142,186.56,186.52,0.67]
[1760861120372,3.32887142,186.56,186.53,0.67]
[1760861121276,3.86515071,186.57,186.52,5.36133208]
[1760861121476,3.86515071,186.57,186.54,0.67]
[1760861121686,3.32887142,186.56,186.54,0.67]
[1760861122171,3.86515071,186.57,186.52,5.36133208]
[1760861122380,26.20887142,186.58,186.53,0.67]
[1760861122885,26.20887142,186.58,186.54,0.67]
[1760861125577,3.32887142,186.58,186.54,0.67]
[1760861125970,26.20887142,186.58,186.54,0.67]
[1760861127671,3.32887142,186.57,186.54,0.67]
[1760861129284,3.32887142,186.56,186.52,5.36128518]
[1760861129490,3.32887142,186.56,186.53,0.67]
[1760861129686,3.32887142,186.56,186.54,0.67]
[1760861130406,0.53627929,186.57,186.54,0.67]
[1760861130701,3.32887142,186.56,186.54,0.67]
[1760861132588,3.32887142,186.56,186.52,5.36128518]
[1760861132788,3.32887142,186.56,186.52,0.67]
[1760861133094,3.32887142,186.56,186.53,0.67]
[1760861133607,3.32887142,186.56,186.51,5.3616428]
[1760861133902,3.32887142,186.56,186.54,0.67]
[1760861135701,3.86515071,186.57,186.49,13.9417464]
[1760861135907,3.86515071,186.57,186.54,0.67]
[1760861137895,3.32887142,186.56,186.54,0.67]
[1760861138811,22.88,186.58,186.48,5.36128518]
[1760861138812,3.86515071,186.55,186.48,6.03250536]
[1760861139008,3.32887142,186.52,186.48,6.03250536]
[1760861139207,3.32887142,186.52,186.49,0.67]